fUSD/lending_fUSD_20260412
["ID","MTS","AMOUNT","RATE_DAILY","PERIOD"]
[420345539,1776005470835,-500.0,0.00038356,15]
[420345540,1776005470850,-500.0,0.00038356,15]
[420345541,1776005470869,-500.0,0.00038356,15]
[420345542,1776005470883,-500.0,0.00038356,15]
[420345543,1776005470902,-500.0,0.00038356,15]
[420345544,1776005470912,-500.0,0.00038356,15]
[420345545,1776005470925,-659.97,0.00038356,15]
[420345546,1776005470941,-386.65843424,0.00038356,15]
[420345547,1776005470957,-500.0,0.00038356,15]
[420345548,1776005470970,-716.72,0.00038356,15]
[420345549,1776005470994,-500.0,0.00038356,15]
[420345550,1776005471008,-500.0,0.00038356,15]
[420345551,1776005471022,-1034.3,0.00038356,15]
[420345552,1776005471053,-500.0,0.00038356,15]
[420345553,1776005471066,-500.0,0.00038356,15]
[420345554,1776005471086,-500.0,0.00038356,15]
[420345555,1776005471115,-1725.15,0.00038356,15]
[420345556,1776005471144,-500.0,0.00038356,15]
[420345557,1776005471154,-514.48442811,0.00038356,15]
[420345558,1776005471167,-293.61213755,0.00038356,15]
[420345559,1776005471196,-1152.11,0.00038356,15]
[420345560,1776005471210,-500.0,0.00038356,15]
[420345561,1776005471235,-500.0,0.00038356,15]
[420345562,1776005471245,-500.0,0.00038356,15]
[420345563,1776005471264,-500.0,0.00038356,15]
[420345564,1776005471280,-500.0,0.00038356,15]
[420345565,1776005471291,-650.58,0.00038356,15]
[420345566,1776005471310,-500.0,0.00038356,15]
[420345567,1776005471327,-500.0,0.00038356,15]
[420345568,1776005471353,-549.02,0.00038356,15]
[420345569,1776005471365,-500.0,0.00038356,15]
[420345570,1776005471377,-500.0,0.00038356,15]
[420345571,1776005471403,-500.0,0.00038356,15]
[420345572,1776005471413,-500.0,0.00038356,15]
[420345573,1776005471424,-539.07,0.00038356,15]
[420345574,1776005471450,-500.0,0.00038356,15]
[420345575,1776005471462,-500.0,0.00038356,15]
[420345576,1776005471478,-500.0,0.00038356,15]
[420345577,1776005471506,-500.0,0.00038356,15]
[420345578,1776005471517,-500.0,0.00038356,15]
[420345579,1776005471791,-908.95,0.00038356,15]
[420345580,1776005471845,-500.0,0.00038356,15]
[420345581,1776005471861,-500.0,0.00038356,15]
[420345582,1776005471871,-549.07,0.00038356,15]
[420345583,1776005471882,-500.0,0.00038356,15]
[420345584,1776005471898,-500.0,0.00038356,15]
[420345585,1776005471907,-2730.66,0.00038356,15]
[420345586,1776005471917,-500.0,0.00038356,15]
[420345587,1776005471931,-243.64857684,0.00038356,15]
[420345588,1776005471951,-571.32,0.00038356,15]
[420345589,1776005471963,-500.0,0.00038356,15]
[420345590,1776005471975,-500.0,0.00038356,15]
[420345591,1776005471993,-500.0,0.00038356,15]
[420345592,1776005472015,-500.0,0.00038356,15]
[420345593,1776005472029,-251.63112401,0.00038356,15]
[420345594,1776005472041,-500.0,0.00038356,15]
[420345595,1776005472059,-870.2,0.00038356,15]
[420345596,1776005472068,-500.0,0.00038356,15]
[420345597,1776005472091,-500.0,0.00038356,15]
[420345598,1776005472101,-500.0,0.00038356,15]
[420345599,1776005472112,-500.0,0.00038356,15]
[420345600,1776005472140,-3130.44,0.00038356,15]
[420345601,1776005472150,-440.5342083,0.00038356,15]
[420345602,1776005472165,-500.0,0.00038356,15]
[420345603,1776005472182,-500.0,0.00038356,15]
[420345604,1776005472193,-500.0,0.00038356,15]
[420345605,1776005472209,-500.0,0.00038356,15]
[420345606,1776005472226,-500.0,0.00038356,15]
[420345607,1776005472239,-500.0,0.00038356,15]
[420345608,1776005472253,-500.0,0.00038356,15]
[420345609,1776005472278,-500.0,0.00038356,15]
[420345610,1776005472295,-500.0,0.00038356,15]
[420345611,1776005472305,-500.0,0.00038356,15]
[420345612,1776005472318,-195.85626555,0.00038356,15]
[420345613,1776005472339,-500.0,0.00038356,15]
[420345614,1776005472348,-570.14,0.00038356,2]
[420345615,1776005472366,-554.01,0.00038356,15]
[420345616,1776005472384,-1361.08,0.00038356,15]
[420345617,1776005472396,-223.43232096,0.00038356,15]
[420345618,1776005472416,-500.0,0.00038356,15]
[420345619,1776005472427,-500.0,0.00038356,15]
[420345620,1776005472440,-500.0,0.00038356,15]
[420345621,1776005472453,-500.0,0.00038356,15]
[420345622,1776005472476,-500.0,0.00038356,15]
[420345623,1776005472492,-639.01436469,0.00038356,15]
[420345624,1776005472509,-1456.33,0.00038356,15]
[420345625,1776005472520,-500.0,0.00038356,15]
[420345626,1776005472537,-500.0,0.00038356,15]
[420345627,1776005472550,-500.0,0.00038356,15]
[420345628,1776005472560,-500.0,0.00038356,15]
[420345629,1776005472574,-500.0,0.00038356,15]
[420345630,1776005472586,-533.79,0.00038356,15]
[420345631,1776005472599,-795.44,0.00038356,15]
[420345632,1776005472611,-500.0,0.00038356,15]
[420345633,1776005472623,-500.0,0.00038356,15]
[420345634,1776005472637,-500.0,0.00038356,15]
[420345635,1776005472663,-645.25317312,0.00038356,15]
[420345636,1776005472676,-1895.46,0.00038356,15]
[420345637,1776005472688,-500.0,0.00038356,15]
[420345638,1776005472701,-1098.84,0.00038356,15]
[420345639,1776005472715,-500.0,0.00038356,15]
[420345640,1776005472725,-500.0,0.00038356,15]
[420345641,1776005472746,-500.0,0.00038356,15]
[420345642,1776005472763,-500.0,0.00038356,15]
[420345643,1776005472775,-716.53,0.00038356,15]
[420345644,1776005472802,-500.0,0.00038356,15]
[420345645,1776005472835,-816.02,0.00038356,15]
[420345646,1776005472850,-500.0,0.00038356,15]
[420345647,1776005472876,-500.0,0.00038356,15]
[420345648,1776005472887,-1503.52,0.00038356,15]
[420345649,1776005472901,-500.0,0.00038356,15]
[420345650,1776005472929,-500.0,0.00038356,15]
[420345651,1776005472940,-500.0,0.00038356,15]
[420345652,1776005472955,-500.0,0.00038356,15]
[420345653,1776005472967,-500.0,0.00038356,15]
[420345654,1776005472978,-570.62456173,0.00038356,15]
[420345655,1776005472990,-500.0,0.00038356,15]
[420345656,1776005473005,-249.79780499,0.00038356,15]
[420345657,1776005473022,-500.0,0.00038356,15]
[420345658,1776005473034,-500.0,0.00038356,15]
[420345659,1776005473049,-500.0,0.00038356,15]
[420345660,1776005473085,-500.0,0.00038356,15]
[420345661,1776005473097,-500.0,0.00038356,15]
[420345662,1776005473125,-500.0,0.00038356,15]
[420345663,1776005473186,-500.0,0.00038356,15]
[420345664,1776005473200,-400.91474157,0.00038356,15]
[420345665,1776005473239,-500.0,0.00038356,15]
[420345666,1776005473254,-500.0,0.00038356,15]
[420345667,1776005473286,-500.0,0.00038356,15]
[420345668,1776005473299,-759.58,0.00038356,15]
[420345669,1776005473336,-500.0,0.00038356,15]
[420345670,1776005473347,-1734.79,0.00038356,15]
[420345671,1776005473360,-500.0,0.00038356,15]
[420345672,1776005473375,-270.12471556,0.00038356,15]
[420345673,1776005473386,-500.0,0.00038356,15]
[420345674,1776005473397,-500.0,0.00038356,15]
[420345675,1776005473419,-560.63,0.00038356,15]
[420345676,1776005473429,-500.0,0.00038356,15]
[420345677,1776005473439,-877.6,0.00038356,15]
[420345678,1776005473459,-500.0,0.00038356,15]
[420345679,1776005473469,-641.52162146,0.00038356,15]
[420345680,1776005473479,-500.0,0.00038356,15]
[420345681,1776005473493,-500.0,0.00038356,15]
[420345682,1776005473503,-500.0,0.00038356,15]
[420345683,1776005473515,-500.0,0.00038356,15]
[420345684,1776005473525,-893.39,0.00038356,15]
[420345685,1776005473536,-500.0,0.00038356,15]
[420345686,1776005473546,-500.0,0.00038356,15]
[420345687,1776005473558,-500.0,0.00038356,15]
[420345688,1776005473568,-595.08671609,0.00038356,15]
[420345689,1776005473579,-500.0,0.00038356,15]
[420345690,1776005473590,-648.98921091,0.00038356,15]
[420345691,1776005473612,-500.0,0.00038356,15]
[420345692,1776005473633,-500.0,0.00038356,15]
[420345693,1776005473648,-507.30085451,0.00038356,14]
[420345694,1776005473670,-500.0,0.00038356,15]
[420345695,1776005473680,-500.0,0.00038356,15]
[420345696,1776005473697,-500.0,0.00038356,15]
[420345697,1776005473714,-603.8888806,0.00038356,15]
[420345698,1776005473724,-500.0,0.00038356,15]
[420345699,1776005473751,-500.0,0.00038356,15]
[420345700,1776005473771,-500.0,0.00038356,15]
[420345701,1776005473785,-237.17025633,0.00038356,15]
[420345702,1776005473807,-175.41250871,0.00038356,10]
[420345703,1776005473818,-500.0,0.00038356,15]
[420345704,1776005473855,-500.0,0.00038356,15]
[420345705,1776005473865,-500.0,0.00038356,15]
[420345706,1776005473879,-684.809142,0.00038356,15]
[420345707,1776005473906,-332.857305,0.00038356,15]
[420345708,1776005473920,-528.12,0.00038356,15]
[420345709,1776005473960,-648.54960364,0.00038356,15]
[420345710,1776005473970,-500.0,0.00038356,120]
[420345711,1776005473985,-500.0,0.00038356,120]
[420345712,1776005473998,-500.0,0.00038356,2]
[420345713,1776005474010,-300.0,0.00038356,2]
[420345714,1776005474021,-1000.0,0.00038356,15]
[420345715,1776005474039,-668.2,0.00038356,15]
[420345716,1776005474051,-500.0,0.00038356,2]
[420345717,1776005474061,-1036.0,0.00038356,30]
[420345718,1776005474079,-477.0,0.00038356,15]
[420345719,1776005474097,-576.94772577,0.00038373,5]
[420345720,1776005474115,-1842.34,0.00038386,30]
[420345721,1776005474126,-181.02734247,0.0003842,2]
[420345722,1776005474143,-371.93,0.00038459,120]
[420345723,1776005474155,-191.1029,0.00038493,15]
[420345724,1776005474169,-334.57812961,0.00038495,78]
[420345725,1776005474182,-700.0,0.000385,14]
[420345726,1776005474202,-199.66701123,0.0003853,2]
[420345727,1776005474214,-390.25713878,0.0003853,2]
[420345728,1776005474225,-405.94872359,0.0003853,2]
[420345729,1776005474248,-216.08048738,0.0003853,7]
[420345730,1776005474258,-704.10239569,0.00038567,79]
[420345731,1776005474282,-500.0,0.00038575,120]
[420345732,1776005474293,-114.6685931,0.00038585,2]
[420345733,1776005475430,-66.35874937,0.00038585,2]
[420345734,1776005475439,-1000.0,0.000386,120]
[420345735,1776005475460,-388.49,0.000386,7]
[420345736,1776005475485,-412.18877111,0.00038629,15]
[420345737,1776005475768,-2884.46311667,0.00038629,15]
[420345738,1776005476059,-3269.94588762,0.00038629,15]
[420345739,1776005476092,-3824.6406879,0.00038629,15]
[420345740,1776005476116,-2741.95708749,0.00038629,15]
[420345741,1776005476128,-1767.59,0.0003863,15]
[420345742,1776005476147,-500.0,0.0003863,15]
[420345743,1776005476161,-500.0,0.0003863,15]
[420345744,1776005476188,-500.0,0.0003863,15]
[420345745,1776005476203,-500.0,0.0003863,15]
[420345746,1776005476223,-500.0,0.0003863,15]
[420345747,1776005476254,-500.0,0.0003863,15]
[420345748,1776005476279,-500.0,0.0003863,15]
[420345749,1776005476309,-500.0,0.0003863,15]
[420345750,1776005476319,-500.0,0.0003863,15]
[420345751,1776005476342,-438.91299851,0.0003863,15]
[420345752,1776005476352,-512.31,0.0003863,15]
[420345753,1776005476366,-500.0,0.0003863,15]
[420345754,1776005476390,-500.0,0.0003863,15]
[420345755,1776005476404,-500.0,0.0003863,15]
[420345756,1776005476417,-500.0,0.0003863,15]
[420345757,1776005476434,-500.0,0.0003863,15]
[420345758,1776005476469,-525.2622304,0.0003863,15]
[420345759,1776005476489,-715.35,0.0003863,15]
[420345760,1776005476507,-500.0,0.0003863,15]
[420345761,1776005476521,-767.42,0.0003863,15]
[420345762,1776005476559,-500.0,0.0003863,15]
[420345763,1776005476569,-500.0,0.0003863,15]
[420345764,1776005476589,-500.0,0.0003863,15]
[420345765,1776005476611,-847.56,0.0003863,15]
[420345766,1776005476622,-334.59538731,0.0003863,15]
[420345767,1776005476656,-500.0,0.0003863,15]
[420345768,1776005476665,-500.0,0.0003863,15]
[420345769,1776005476675,-500.0,0.0003863,15]
[420345770,1776005476699,-190.84443487,0.0003863,15]
[420345771,1776005476709,-529.06,0.0003863,15]
[420345772,1776005476720,-500.0,0.0003863,15]
[420345773,1776005476746,-500.0,0.0003863,15]
[420345774,1776005476755,-500.0,0.0003863,15]
[420345775,1776005476767,-1402.89,0.0003863,15]
[420345776,1776005476789,-500.0,0.0003863,15]
[420345777,1776005476798,-500.0,0.0003863,15]
[420345778,1776005476823,-500.0,0.0003863,15]
[420345779,1776005476833,-500.0,0.0003863,15]
[420345780,1776005476843,-684.17,0.0003863,15]
[420345781,1776005476863,-500.0,0.0003863,15]
[420345782,1776005476881,-1387.05,0.0003863,15]
[420345783,1776005476897,-500.0,0.0003863,15]
[420345784,1776005476910,-500.0,0.0003863,15]
[420345785,1776005476923,-500.0,0.0003863,15]
[420345786,1776005476934,-500.0,0.0003863,15]
[420345787,1776005476946,-500.0,0.0003863,15]
[420345788,1776005476957,-500.0,0.0003863,15]
[420345789,1776005476973,-500.0,0.0003863,15]
[420345790,1776005476986,-548.52,0.0003863,15]
[420345791,1776005476998,-1782.69,0.0003863,7]
[420345792,1776005477015,-1222.75,0.0003863,15]
[420345793,1776005477034,-500.0,0.0003863,15]
[420345794,1776005477047,-500.0,0.0003863,7]
[420345795,1776005477057,-500.0,0.0003863,15]
[420345796,1776005477073,-500.0,0.0003863,15]
[420345797,1776005477099,-526.54254531,0.0003863,15]
[420345798,1776005477109,-500.0,0.0003863,15]
[420345799,1776005477124,-500.0,0.0003863,15]
[420345800,1776005477144,-500.0,0.0003863,15]
[420345801,1776005477154,-500.0,0.0003863,15]
[420345802,1776005477165,-500.0,0.0003863,15]
[420345803,1776005477190,-500.0,0.0003863,15]
[420345804,1776005477216,-500.0,0.0003863,15]
[420345805,1776005477228,-500.0,0.0003863,15]
[420345806,1776005477239,-856.14,0.0003863,15]
[420345807,1776005477263,-331.43795966,0.0003863,15]
[420345808,1776005477277,-500.0,0.0003863,15]
[420345809,1776005477300,-239.97527941,0.0003863,15]
[420345810,1776005477317,-500.0,0.0003863,15]
[420345811,1776005477337,-500.0,0.0003863,15]
[420345812,1776005477385,-500.0,0.0003863,14]
[420345813,1776005477397,-676.65,0.0003863,15]
[420345814,1776005477415,-500.0,0.0003863,15]
[420345815,1776005477432,-545.26,0.0003863,15]
[420345816,1776005477447,-1373.53,0.0003863,15]
[420345817,1776005477460,-646.20244945,0.0003863,15]
[420345818,1776005477485,-500.0,0.0003863,15]
[420345819,1776005477494,-500.0,0.0003863,15]
[420345820,1776005477507,-759.04,0.0003863,15]
[420345821,1776005477528,-500.0,0.0003863,15]
[420345822,1776005477539,-500.0,0.0003863,15]
[420345823,1776005477553,-500.0,0.0003863,15]
[420345824,1776005477569,-2430.45,0.0003863,15]
[420345825,1776005477581,-500.0,0.0003863,15]
[420345826,1776005477594,-500.0,0.0003863,15]
[420345827,1776005477611,-628.58,0.0003863,15]
[420345828,1776005477624,-500.0,0.0003863,15]
[420345829,1776005477635,-500.0,0.0003863,15]
[420345830,1776005477649,-859.65,0.0003863,15]
[420345831,1776005477659,-1312.05,0.0003863,15]
[420345832,1776005477673,-619.8,0.0003863,15]
[420345833,1776005477687,-500.0,0.0003863,15]
[420345834,1776005477698,-500.0,0.0003863,15]
[420345835,1776005477714,-604.44779273,0.0003863,15]
[420345836,1776005477732,-500.0,0.0003863,15]
[420345837,1776005477742,-2376.48,0.0003863,15]
[420345838,1776005477757,-587.8,0.0003863,15]
[420345839,1776005477781,-958.49,0.0003863,7]
[420345840,1776005477794,-646.34,0.0003863,15]
[420345841,1776005477809,-500.0,0.0003863,15]
[420345842,1776005477825,-500.0,0.0003863,15]
[420345843,1776005477841,-500.0,0.0003863,15]
[420345844,1776005477857,-2048.44,0.0003863,15]
[420345845,1776005477872,-500.0,0.0003863,15]
[420345846,1776005477898,-500.0,0.0003863,15]
[420345847,1776005477911,-669.78,0.0003863,15]
[420345848,1776005477931,-500.0,0.0003863,15]
[420345849,1776005477944,-500.0,0.0003863,15]
[420345850,1776005477973,-773.54,0.0003863,15]
[420345851,1776005477984,-1132.89,0.0003863,15]
[420345852,1776005477994,-500.0,0.0003863,15]
[420345853,1776005478014,-391.40078864,0.0003863,15]
[420345854,1776005478025,-500.0,0.0003863,15]
[420345855,1776005478035,-500.0,0.0003863,15]
[420345856,1776005478051,-745.11,0.0003863,15]
[420345857,1776005478066,-1351.17,0.0003863,14]
[420345858,1776005478077,-571.52,0.0003863,15]
[420345859,1776005478091,-164.78179361,0.0003863,15]
[420345860,1776005478109,-500.0,0.0003863,15]
[420345861,1776005478120,-500.0,0.0003863,15]
[420345862,1776005478137,-520.01,0.0003863,15]
[420345863,1776005478150,-500.0,0.0003863,15]
[420345864,1776005478162,-550.55,0.0003863,15]
[420345865,1776005478176,-500.0,0.0003863,15]
[420345866,1776005478190,-871.72,0.0003863,15]
[420345867,1776005478200,-500.0,0.0003863,15]
[420345868,1776005478213,-500.0,0.0003863,15]
[420345869,1776005478238,-500.0,0.0003863,15]
[420345870,1776005478249,-795.98,0.0003863,15]
[420345871,1776005478274,-1284.09,0.0003863,15]
[420345872,1776005478308,-655.92,0.0003863,15]
[420345873,1776005478334,-500.0,0.0003863,15]
[420345874,1776005478368,-500.0,0.0003863,15]
[420345875,1776005478379,-1231.63,0.0003863,15]
[420345876,1776005478414,-500.0,0.0003863,15]
[420345877,1776005478424,-500.0,0.0003863,15]
[420345878,1776005478465,-1338.03,0.0003863,15]
[420345879,1776005478476,-500.0,0.0003863,15]
[420345880,1776005478487,-219.33,0.0003863,15]
[420345881,1776005478527,-500.0,0.0003863,15]
[420345882,1776005478538,-713.79,0.0003863,15]
[420345883,1776005478551,-500.0,0.0003863,15]
[420345884,1776005478563,-500.0,0.0003863,15]
[420345885,1776005478575,-500.0,0.0003863,15]
[420345886,1776005478586,-500.0,0.0003863,15]
[420345887,1776005478597,-500.0,0.0003863,15]
[420345888,1776005478619,-500.0,0.0003863,15]
[420345889,1776005478630,-167.74384024,0.0003863,15]
[420345890,1776005478653,-500.0,0.0003863,15]
[420345891,1776005478663,-1049.17,0.0003863,15]
[420345892,1776005478689,-500.0,0.0003863,15]
[420345893,1776005478700,-500.0,0.0003863,15]
[420345894,1776005478714,-500.0,0.0003863,15]
[420345895,1776005478735,-500.0,0.0003863,15]
[420345896,1776005478745,-608.11,0.0003863,15]
[420345897,1776005478762,-500.0,0.0003863,15]
[420345898,1776005478780,-595.77,0.0003863,15]
[420345899,1776005478810,-500.0,0.0003863,15]
[420345900,1776005478820,-500.0,0.0003863,15]
[420345901,1776005478831,-733.67,0.0003863,15]
[420345902,1776005478856,-150.60511286,0.0003863,15]
[420345903,1776005478867,-500.0,0.0003863,15]
[420345904,1776005478883,-500.0,0.0003863,15]
[420345905,1776005478902,-500.0,0.0003863,15]
[420345906,1776005478912,-500.0,0.0003863,15]
[420345907,1776005478926,-560.72,0.0003863,15]
[420345908,1776005478936,-809.18,0.0003863,5]
[420345909,1776005478945,-500.0,0.0003863,15]
[420345910,1776005478956,-500.0,0.0003863,15]
[420345911,1776005478972,-500.0,0.0003863,15]
[420345912,1776005478986,-3791.44,0.0003863,15]
[420345913,1776005478999,-500.0,0.0003863,15]
[420345914,1776005479014,-929.03,0.0003863,15]
[420345915,1776005479024,-500.0,0.0003863,15]
[420345916,1776005479034,-500.0,0.0003863,15]
[420345917,1776005479047,-500.0,0.0003863,15]
[420345918,1776005479058,-500.0,0.0003863,15]
[420345919,1776005479068,-500.0,0.0003863,15]
[420345920,1776005479078,-500.0,0.0003863,15]
[420345921,1776005479090,-500.0,0.0003863,15]
[420345922,1776005479104,-500.0,0.0003863,15]
[420345923,1776005479113,-568.77,0.0003863,15]
[420345924,1776005479123,-500.0,0.0003863,15]
[420345925,1776005479142,-500.0,0.0003863,15]
[420345926,1776005479152,-500.0,0.0003863,15]
[420345927,1776005479162,-352.33456609,0.0003863,15]
[420345928,1776005479178,-500.0,0.0003863,15]
[420345929,1776005479192,-1480.64,0.0003863,15]
[420345930,1776005479210,-500.0,0.0003863,15]
[420345931,1776005479220,-500.0,0.0003863,15]
[420345932,1776005479234,-500.0,0.0003863,15]
[420345933,1776005479253,-500.0,0.0003863,15]
[420345934,1776005479276,-1289.21,0.0003863,15]
[420345935,1776005479286,-500.0,0.0003863,15]
[420345936,1776005479305,-500.0,0.0003863,15]
[420345937,1776005479315,-2156.86,0.0003863,15]
[420345938,1776005479325,-973.47,0.0003863,15]
[420345939,1776005479341,-170.94001264,0.0003863,15]
[420345940,1776005479366,-663.08,0.0003863,15]
[420345941,1776005479377,-500.0,0.0003863,15]
[420345942,1776005479387,-500.0,0.0003863,15]
[420345943,1776005479404,-1138.7,0.0003863,15]
[420345944,1776005479429,-500.0,0.0003863,15]
[420345945,1776005479439,-895.32,0.0003863,15]
[420345946,1776005479449,-500.0,0.0003863,15]
[420345947,1776005479478,-1296.11,0.0003863,15]
[420345948,1776005479493,-1739.31,0.0003863,15]
[420345949,1776005479503,-500.0,0.0003863,15]
[420345950,1776005479515,-158.69781646,0.0003863,15]
[420345951,1776005479529,-1245.49,0.0003863,15]
[420345952,1776005479540,-597.58,0.0003863,15]
[420345953,1776005479549,-500.0,0.0003863,15]
[420345954,1776005479566,-500.0,0.0003863,15]
[420345955,1776005479583,-500.0,0.0003863,15]
[420345956,1776005479592,-500.0,0.0003863,15]
[420345957,1776005479606,-500.0,0.0003863,15]
[420345958,1776005479623,-500.0,0.0003863,15]
[420345959,1776005479635,-500.0,0.0003863,15]
[420345960,1776005479652,-500.0,0.0003863,15]
[420345961,1776005479672,-500.0,0.0003863,15]
[420345962,1776005479682,-2591.04,0.0003863,15]
[420345963,1776005479703,-500.0,0.0003863,15]
[420345964,1776005479715,-500.0,0.0003863,15]
[420345965,1776005479724,-577.84,0.0003863,15]
[420345966,1776005479743,-500.0,0.0003863,15]
[420345967,1776005479757,-1471.6,0.0003863,15]
[420345968,1776005479766,-500.0,0.0003863,15]
[420345969,1776005479783,-500.0,0.0003863,12]
[420345970,1776005479795,-564.66333627,0.0003863,15]
[420345971,1776005479806,-500.0,0.0003863,15]
[420345972,1776005479817,-664.86,0.0003863,15]
[420345973,1776005479830,-755.89,0.0003863,15]
[420345974,1776005479843,-500.0,0.0003863,15]
[420345975,1776005479858,-500.0,0.0003863,15]
[420345976,1776005479874,-605.03,0.0003863,15]
[420345977,1776005479891,-500.0,0.0003863,15]
[420345978,1776005479900,-500.0,0.0003863,15]
[420345979,1776005479910,-500.0,0.0003863,15]
[420345980,1776005479934,-711.29,0.0003863,15]
[420345981,1776005479945,-500.0,0.0003863,15]
[420345982,1776005479964,-500.0,0.0003863,15]
[420345983,1776005479998,-500.0,0.0003863,15]
[420345984,1776005480064,-500.0,0.0003863,15]
[420345985,1776005480113,-500.0,0.0003863,15]
[420345986,1776005480144,-1515.9,0.0003863,15]
[420345987,1776005480161,-1227.14,0.0003863,15]
[420345988,1776005480170,-2584.97,0.0003863,15]
[420345989,1776005480197,-500.0,0.0003863,15]
[420345990,1776005480207,-500.0,0.0003863,15]
[420345991,1776005480238,-1555.57,0.0003863,15]
[420345992,1776005480248,-500.0,0.0003863,15]
[420345993,1776005480258,-500.0,0.0003863,15]
[420345994,1776005480281,-500.0,0.0003863,15]
[420345995,1776005480292,-1588.25,0.0003863,15]
[420345996,1776005480302,-500.0,0.0003863,15]
[420345997,1776005480316,-1567.48,0.0003863,15]
[420345998,1776005480329,-174.99877715,0.0003863,15]
[420345999,1776005480344,-500.0,0.0003863,15]
[420346000,1776005480359,-500.0,0.0003863,15]
[420346001,1776005480369,-1721.11,0.0003863,15]
[420346002,1776005480379,-1301.35,0.0003863,15]
[420346003,1776005480392,-500.0,0.0003863,15]
[420346004,1776005480403,-1352.62,0.0003863,15]
[420346005,1776005480414,-500.0,0.0003863,15]
[420346006,1776005480428,-2604.52,0.0003863,15]
[420346007,1776005480437,-500.0,0.0003863,15]
[420346008,1776005480448,-500.0,0.0003863,15]
[420346009,1776005480464,-2630.7,0.0003863,15]
[420346010,1776005480473,-500.0,0.0003863,15]
[420346011,1776005480483,-500.0,0.0003863,15]
[420346012,1776005480498,-500.0,0.0003863,15]
[420346013,1776005480508,-500.0,0.0003863,15]
[420346014,1776005480518,-500.0,0.0003863,15]
[420346015,1776005480529,-500.0,0.0003863,15]
[420346016,1776005480539,-1007.98,0.0003863,15]
[420346017,1776005480549,-502.92,0.0003863,15]
[420346018,1776005480559,-500.0,0.0003863,15]
[420346019,1776005480574,-1487.84,0.0003863,15]
[420346020,1776005480586,-1414.47,0.0003863,15]
[420346021,1776005480595,-500.0,0.0003863,15]
[420346022,1776005480605,-500.0,0.0003863,15]
[420346023,1776005480622,-2936.4,0.0003863,15]
[420346024,1776005480632,-500.0,0.0003863,15]
[420346025,1776005480642,-500.0,0.0003863,15]
[420346026,1776005480652,-1537.35,0.0003863,15]
[420346027,1776005480676,-500.0,0.0003863,15]
[420346028,1776005480686,-500.0,0.0003863,15]
[420346029,1776005480708,-500.0,0.0003863,15]
[420346030,1776005480718,-2251.66,0.0003863,15]
[420346031,1776005480730,-639.3562549,0.0003863,15]
[420346032,1776005480754,-500.0,0.0003863,15]
[420346033,1776005480764,-341.87859429,0.0003863,15]
[420346034,1776005480778,-511.93,0.0003863,15]
[420346035,1776005480800,-500.0,0.0003863,15]
[420346036,1776005480810,-500.0,0.0003863,15]
[420346037,1776005480821,-2041.75,0.0003863,15]
[420346038,1776005480831,-500.0,0.0003863,15]